fUST/lending_fUST_20250921
["ID","MTS","AMOUNT","RATE_DAILY","PERIOD"]
[386557977,1758391837732,-151.0,0.00020891,2]
[386557979,1758391837741,-151.0,0.00020891,2]
[386557980,1758391837750,-1057.16,0.00020891,2]
[386557981,1758391837759,-151.0,0.00020891,2]
[386557982,1758391837769,-162.042622,0.00020891,2]
[386557983,1758391837778,-151.0,0.00020891,2]
[386557984,1758391837788,-151.0,0.00020891,2]
[386557985,1758391837797,-151.0,0.00020891,2]
[386557986,1758391837806,-151.0,0.00020891,2]
[386557987,1758391837815,-151.0,0.00020891,2]
[386557988,1758391837824,-480.0,0.00020891,2]
[386557989,1758391837833,-480.0,0.00020891,2]
[386557990,1758391837842,-480.0,0.00020891,2]
[386557991,1758391837852,-500.0,0.00020891,2]
[386557992,1758391837861,-480.0,0.00020891,2]
[386557993,1758391837871,-151.0,0.00020891,2]
[386557994,1758391837880,-151.0,0.00020891,2]
[386557996,1758391837889,-151.0,0.00020891,2]
[386557998,1758391837898,-151.0,0.00020891,2]
[386558000,1758391837906,-151.0,0.00020891,2]
[386558001,1758391837916,-480.0,0.00020891,2]
[386558002,1758391837925,-512.91816341,0.00020891,2]
[386558003,1758391837936,-158.682786,0.00020891,2]
[386558004,1758391837945,-480.0,0.00020891,2]
[386558005,1758391837954,-151.0,0.00020891,2]
[386558006,1758391837963,-151.0,0.00020891,2]
[386558007,1758391837972,-151.0,0.00020891,2]
[386558009,1758391837981,-151.0,0.00020891,2]
[386558011,1758391837991,-151.0,0.00020891,2]
[386558012,1758391838001,-480.0,0.00020891,2]
[386558013,1758391838010,-151.0,0.00020891,2]
[386558014,1758391838020,-480.0,0.00020891,2]
[386558015,1758391838029,-151.0,0.00020891,2]
[386558016,1758391838039,-151.0,0.00020891,2]
[386558017,1758391838053,-480.0,0.00020891,2]
[386558018,1758391838063,-416.447618,0.00020891,2]
[386558019,1758391838073,-151.0,0.00020891,2]
[386558021,1758391838086,-416.447618,0.00020891,2]
[386558022,1758391838095,-151.0,0.00020891,2]
[386558023,1758391838104,-151.0,0.00020892,2]
[386558024,1758391838114,-481.04,0.00020892,2]
[386558025,1758391838123,-488.44,0.00020892,2]
[386558026,1758391838132,-507.14026634,0.00020892,2]
[386558027,1758391838141,-480.0,0.00020892,2]
[386558028,1758391838151,-1113.99,0.00020892,2]
[386558029,1758391838160,-480.0,0.00020892,2]
[386558030,1758391838169,-2064.05,0.00020892,2]
[386558031,1758391838179,-155.0,0.00020893,2]
[386558032,1758391838189,-232.995646,0.00020893,2]
[386558033,1758391838198,-151.0,0.00020893,2]
[386558034,1758391838208,-151.0,0.00020893,2]
[386558035,1758391838219,-151.0,0.00020893,2]
[386558036,1758391838229,-151.0,0.00020893,2]
[386558037,1758391838239,-151.0,0.00020893,2]
[386558038,1758391838249,-151.0,0.00020893,2]
[386558039,1758391838259,-151.0,0.00020893,2]
[386558040,1758391838268,-151.0,0.00020893,2]
[386558041,1758391838277,-151.0,0.00020893,2]
[386558042,1758391838287,-151.0,0.00020893,2]
[386558043,1758391838296,-327.160766,0.00020893,2]
[386558044,1758391838305,-327.160766,0.00020893,2]
[386558045,1758391838314,-151.0,0.00020893,2]
[386558046,1758391838325,-327.160766,0.00020893,2]
[386558047,1758391838336,-327.160766,0.00020893,2]
[386558048,1758391838345,-152.750733,0.00020893,2]
[386558049,1758391838354,-151.0,0.00020893,2]
[386558050,1758391838363,-151.0,0.00020893,2]
[386558051,1758391838373,-218.792117,0.00020893,2]
[386558052,1758391838382,-218.792117,0.00020893,2]
[386558053,1758391838391,-218.792117,0.00020893,2]
[386558054,1758391838400,-218.792117,0.00020893,2]
[386558055,1758391838409,-151.0,0.00020893,2]
[386558056,1758391838419,-151.0,0.00020893,2]
[386558057,1758391838428,-151.0,0.00020893,2]
[386558058,1758391838438,-151.0,0.00020893,2]
[386558059,1758391838447,-152.986606,0.00020893,2]
[386558060,1758391838456,-151.0,0.00020893,2]
[386558061,1758391838467,-151.0,0.00020893,2]
[386558062,1758391838476,-152.986606,0.00020893,2]
[386558063,1758391838485,-152.986606,0.00020893,2]
[386558064,1758391838494,-152.986606,0.00020893,2]
[386558065,1758391838504,-480.0,0.00020893,2]
[386558066,1758391838513,-12781.24,0.00020893,2]
[386558067,1758391838522,-151.0,0.00020893,2]
[386558068,1758391838531,-151.0,0.00020893,2]
[386558069,1758391838540,-151.0,0.00020893,2]
[386558070,1758391838550,-151.0,0.00020893,2]
[386558071,1758391838559,-151.0,0.00020893,2]
[386558072,1758391838568,-262.66069,0.00020893,2]
[386558073,1758391838578,-618.29,0.00020893,2]
[386558074,1758391838587,-256.371508,0.00020893,2]
[386558075,1758391838596,-256.371508,0.00020893,2]
[386558076,1758391838605,-151.0,0.00020893,2]
[386558077,1758391838615,-256.371508,0.00020893,2]
[386558078,1758391838623,-151.0,0.00020893,2]
[386558079,1758391838633,-256.371508,0.00020893,2]
[386558080,1758391838642,-151.0,0.00020893,2]
[386558081,1758391838651,-394.215439,0.00020893,2]
[386558082,1758391838660,-394.215439,0.00020893,2]
[386558083,1758391838669,-394.215439,0.00020893,2]
[386558084,1758391838678,-394.215439,0.00020893,2]
[386558085,1758391838687,-1185.5,0.00020893,2]
[386558086,1758391838696,-151.0,0.00020893,2]
[386558087,1758391838705,-284.873624,0.00020893,2]
[386558088,1758391838715,-151.0,0.00020893,2]
[386558089,1758391838725,-151.0,0.00020893,2]
[386558090,1758391838734,-151.0,0.00020893,2]
[386558091,1758391838743,-480.0,0.00020893,2]
[386558092,1758391838752,-850.324692,0.00020893,2]
[386558093,1758391838761,-850.324692,0.00020893,2]
[386558094,1758391838770,-850.324692,0.00020893,2]
[386558095,1758391838779,-151.0,0.00020893,2]
[386558096,1758391838788,-850.324692,0.00020893,2]
[386558097,1758391838797,-151.0,0.00020893,2]
[386558098,1758391838806,-151.0,0.00020893,2]
[386558099,1758391838815,-416.447618,0.00020893,2]
[386558100,1758391838824,-151.0,0.00020893,2]
[386558101,1758391838833,-416.447618,0.00020893,2]
[386558102,1758391838842,-151.0,0.00020893,2]
[386558103,1758391838851,-1149.49,0.00020894,2]
[386558104,1758391838860,-404.987967,0.00020894,2]
[386558105,1758391838869,-298.649497,0.00020894,2]
[386558106,1758391838878,-151.0,0.00020894,2]
[386558107,1758391838887,-177.70595,0.00020894,2]
[386558108,1758391838897,-151.0,0.00020894,2]
[386558109,1758391838906,-263.221685,0.00020894,2]
[386558110,1758391838915,-151.0,0.00020894,2]
[386558111,1758391838924,-151.0,0.00020894,2]
[386558112,1758391838934,-155.0,0.00020895,2]
[386558113,1758391838943,-153.23641665,0.00020896,2]
[386558114,1758391838952,-451.0,0.00020896,2]
[386558115,1758391838961,-151.0,0.00020896,2]
[386558116,1758391838971,-151.0,0.00020896,2]
[386558117,1758391838979,-153.45343,0.00020896,2]
[386558118,1758391838990,-151.0,0.00020896,2]
[386558119,1758391838999,-151.0,0.00020896,2]
[386558120,1758391839009,-151.0,0.00020896,2]
[386558121,1758391839019,-151.0,0.00020896,2]
[386558122,1758391839028,-151.0,0.00020896,2]
[386558123,1758391839037,-151.0,0.00020896,2]
[386558124,1758391839046,-151.0,0.00020896,2]
[386558125,1758391839056,-310.0,0.000209,2]
[386558126,1758391839068,-2198.0,0.00020923,2]
[386558127,1758391839157,-977.0,0.00020923,2]
[386558128,1758391839167,-634.0,0.00020923,2]
[386558129,1758391839177,-2158.0,0.00020923,2]
[386558130,1758391839187,-150.075,0.00020951,2]
[386558131,1758391839196,-150.0,0.00020951,2]
[386558132,1758391839206,-240.34,0.00020972,2]
[386558133,1758391839215,-4032.08436689,0.00020972,2]
[386558134,1758391839225,-151.0,0.00020972,2]
[386558135,1758391839236,-850.324692,0.00020972,2]
[386558136,1758391839247,-850.324692,0.00020972,2]
[386558137,1758391839256,-850.324692,0.00020972,2]
[386558138,1758391839266,-151.0,0.00020972,2]
[386558139,1758391839276,-850.324685,0.00020972,2]
[386558140,1758391839286,-151.0,0.00020972,2]
[386558141,1758391839295,-151.0,0.00020972,2]
[386558142,1758391839304,-501.26796039,0.00020973,2]
[386558143,1758391839315,-500.0,0.00020973,2]
[386558144,1758391839326,-500.0,0.00020973,2]
[386558145,1758391839339,-476.05367128,0.00020973,2]
[386558146,1758391839348,-500.0,0.00020973,2]
[386558147,1758391839357,-500.0,0.00020973,2]
[386558148,1758391839366,-500.0,0.00020973,2]
[386558149,1758391839376,-501.93914469,0.00020973,2]
[386558150,1758391839385,-500.0,0.00020973,2]
[386558151,1758391839394,-500.0,0.00020973,2]
[386558152,1758391839405,-174.71220171,0.00020973,2]
[386558153,1758391839414,-500.0,0.00020973,2]
[386558154,1758391839424,-208.76171828,0.00020973,2]
[386558155,1758391839433,-500.48644755,0.00020973,2]
[386558156,1758391839443,-500.0,0.00020973,2]
[386558158,1758391839452,-500.0,0.00020973,2]
[386558159,1758391839461,-501.41992364,0.00020973,2]
[386558160,1758391839470,-500.0,0.00020973,2]
[386558161,1758391839480,-500.0,0.00020973,2]
[386558162,1758391839489,-500.83686526,0.00020973,2]
[386558163,1758391839499,-500.0,0.00020973,2]
[386558165,1758391839508,-500.57959002,0.00020973,2]
[386558166,1758391839519,-501.84197014,0.00020973,2]
[386558167,1758391839528,-501.0079376,0.00020973,2]
[386558168,1758391839540,-500.0,0.00020973,2]
[386558169,1758391839549,-500.0,0.00020973,2]
[386558171,1758391839558,-500.0,0.00020973,2]
[386558173,1758391839568,-500.27819127,0.00020973,2]
[386558174,1758391839578,-509.01812356,0.00020973,2]
[386558175,1758391839587,-500.0,0.00020973,2]
[386558176,1758391839597,-500.0,0.00020973,2]
[386558177,1758391839607,-500.0,0.00020973,2]
[386558178,1758391839617,-500.0,0.00020973,2]
[386558179,1758391839627,-293.81453449,0.00020973,2]
[386558180,1758391839637,-290.77588044,0.00020973,2]
[386558181,1758391839646,-500.0,0.00020973,2]
[386558182,1758391839655,-500.0,0.00020973,2]
[386558183,1758391839664,-500.0,0.00020973,2]
[386558184,1758391839673,-500.0,0.00020973,2]
[386558185,1758391839683,-500.0,0.00020973,2]
[386558186,1758391839692,-500.43796476,0.00020973,2]
[386558187,1758391839701,-502.00681975,0.00020973,2]
[386558188,1758391839711,-500.0,0.00020973,2]
[386558189,1758391839720,-151.0,0.00020973,2]
[386558190,1758391839729,-151.0,0.00020973,2]
[386558191,1758391839738,-288.639159,0.00020973,2]
[386558192,1758391839747,-256.371508,0.00020973,2]
[386558193,1758391839756,-256.371508,0.00020973,2]
[386558194,1758391839765,-151.0,0.00020973,2]
[386558195,1758391839774,-256.371508,0.00020973,2]
[386558196,1758391839784,-151.0,0.00020973,2]
[386558197,1758391839795,-256.371508,0.00020973,2]
[386558198,1758391839804,-151.0,0.00020973,2]
[386558199,1758391839813,-394.215439,0.00020973,2]
[386558200,1758391839823,-394.215439,0.00020973,2]
[386558201,1758391839832,-394.215439,0.00020973,2]
[386558202,1758391839842,-394.215439,0.00020973,2]
[386558203,1758391839851,-151.0,0.00020973,2]
[386558204,1758391839861,-151.0,0.00020973,2]
[386558205,1758391839870,-151.0,0.00020973,2]
[386558206,1758391839879,-202.279907,0.00020973,2]
[386558207,1758391839888,-332.91160879,0.00020974,2]
[386558208,1758391839897,-3830.12431957,0.0002099,2]
[386558209,1758391839913,-51122.90759004,0.0002099,2]
[386558214,1758391840291,-379.35977359,0.00020607,2]
[386558215,1758391840300,-480.0,0.00020617,2]
[386558216,1758391840309,-752.37882884,0.00020617,2]
[386558217,1758391840342,-5040.65117116,0.00020617,2]
[386558218,1758391840351,-27.80057598,0.00020618,2]
[386558219,1758391840363,-123.19942402,0.00020618,2]
[386558220,1758391840372,-152.519859,0.00020618,2]
[386558221,1758391840382,-416.447618,0.00020618,2]
[386558222,1758391840392,-155.19858075,0.00020618,2]
[386558223,1758391840496,-228.80424925,0.00020618,2]
[386558224,1758391840505,-151.0,0.00020618,2]
[386558225,1758391840515,-384.00283,0.00020618,2]
[386558226,1758391840524,-384.00283,0.00020618,2]
[386558227,1758391840535,-151.0,0.00020793,2]
[386558228,1758391840544,-416.447618,0.00020793,2]
[386558229,1758391840553,-384.00283,0.00020793,2]
[386558230,1758391840562,-384.00283,0.00020793,2]
[386558231,1758391840572,-384.00283,0.00020793,2]
[386558232,1758391840581,-151.0,0.00020884,2]
[386558233,1758391840591,-416.447618,0.00020884,2]
[386558234,1758391840600,-384.00283,0.00020884,2]
[386558235,1758391840610,-384.00283,0.00020884,2]
[386558236,1758391840619,-384.00283,0.00020884,2]
[386558237,1758391840629,-416.447618,0.00020891,2]
[386558238,1758391840639,-480.0,0.00020891,2]
[386558239,1758391840649,-151.0,0.00020891,2]
[386558240,1758391840668,-5793.03,0.00020891,2]
[386558241,1758391840678,-416.447618,0.00020891,2]
[386558242,1758391840690,-384.00283,0.00020891,2]
[386558243,1758391840700,-384.00283,0.00020891,2]
[386558244,1758391840710,-416.447618,0.00020893,2]
[386558245,1758391840720,-416.447619,0.00020893,2]
[386558246,1758391840729,-384.00283,0.00020893,2]
[386558247,1758391840738,-384.00283,0.00020893,2]
[386558248,1758391840748,-410.0,0.00020923,2]
[386558249,1758391840758,-18480.12398704,0.0002099,2]
[386558250,1758391840771,-26566.84410335,0.0002099,2]
[386558251,1758391840780,-151.0,0.0002099,2]
[386558252,1758391840791,-151.313751,0.0002099,2]
[386558253,1758391840800,-151.0,0.0002099,2]
[386558254,1758391840810,-151.0,0.0002099,2]
[386558255,1758391840819,-151.0,0.0002099,2]
[386558256,1758391840829,-151.0,0.0002099,2]
[386558257,1758391840839,-151.0,0.0002099,2]
[386558258,1758391840848,-151.0,0.0002099,2]
[386558259,1758391840858,-151.0,0.0002099,2]
[386558260,1758391840868,-151.0,0.0002099,2]
[386558261,1758391840877,-151.0,0.0002099,2]
[386558262,1758391840998,-151.0,0.0002099,2]
[386558263,1758391841010,-151.0,0.0002099,2]
[386558264,1758391841020,-151.0,0.0002099,2]
[386558265,1758391841030,-151.0,0.0002099,2]
[386558266,1758391841039,-151.0,0.0002099,2]
[386558267,1758391841049,-151.0,0.0002099,2]
[386558268,1758391841058,-327.160766,0.0002099,2]
[386558269,1758391841067,-327.160766,0.0002099,2]
[386558270,1758391841076,-157.116771,0.0002099,2]
[386558271,1758391841085,-327.160766,0.0002099,2]
[386558272,1758391841095,-327.160766,0.0002099,2]
[386558273,1758391841104,-151.0,0.0002099,2]
[386558274,1758391841114,-151.0,0.0002099,2]
[386558275,1758391841123,-218.792117,0.0002099,2]
[386558276,1758391841132,-218.792117,0.0002099,2]
[386558277,1758391841142,-218.792117,0.0002099,2]
[386558278,1758391841151,-218.792117,0.0002099,2]
[386558279,1758391841161,-167.396164,0.0002099,2]
[386558280,1758391841171,-151.0,0.0002099,2]
[386558281,1758391841182,-254.839827,0.0002099,2]
[386558282,1758391841191,-151.0,0.0002099,2]
[386558283,1758391841200,-152.986606,0.0002099,2]
[386558284,1758391841210,-151.0,0.0002099,2]
[386558285,1758391841219,-151.0,0.0002099,2]
[386558286,1758391841228,-152.986606,0.0002099,2]
[386558287,1758391841237,-152.986606,0.0002099,2]
[386558288,1758391841247,-152.986606,0.0002099,2]
[386558289,1758391841256,-151.0,0.0002099,2]
[386558290,1758391841266,-151.0,0.0002099,2]
[386558291,1758391841275,-151.0,0.0002099,2]
[386558292,1758391841284,-151.0,0.0002099,2]
[386558293,1758391841295,-151.0,0.0002099,2]
[386558294,1758391841304,-256.371508,0.0002099,2]
[386558295,1758391841313,-256.371508,0.0002099,2]
[386558296,1758391841322,-151.0,0.0002099,2]
[386558297,1758391841334,-256.371508,0.0002099,2]
[386558298,1758391841352,-151.0,0.0002099,2]
[386558299,1758391841362,-256.371506,0.0002099,2]
[386558300,1758391841372,-151.0,0.0002099,2]
[386558301,1758391841381,-394.215439,0.0002099,2]
[386558302,1758391841391,-394.215439,0.0002099,2]
[386558303,1758391841400,-394.215439,0.0002099,2]
[386558304,1758391841409,-394.215433,0.0002099,2]
[386558305,1758391841419,-151.0,0.0002099,2]
[386558306,1758391841428,-151.0,0.0002099,2]
[386558307,1758391841438,-151.0,0.0002099,2]
[386558308,1758391841448,-243.65576526,0.00021004,2]
[386558309,1758391841458,-254.54838567,0.0002103,10]
[386558310,1758391841467,-300.0,0.00021049,20]
[386558311,1758391841478,-300.0,0.00021049,20]
[386558312,1758391841487,-300.0,0.00021049,20]
[386558313,1758391841497,-300.0,0.00021049,20]
[386558314,1758391841507,-300.0,0.00021049,20]
[386558315,1758391841517,-300.0,0.00021049,20]
[386558316,1758391841527,-300.0,0.00021049,20]
[386558317,1758391841537,-300.0,0.00021049,20]
[386558318,1758391841546,-300.0,0.00021049,20]
[386558319,1758391841556,-300.0,0.00021049,20]
[386558320,1758391841565,-300.0,0.00021049,20]
[386558321,1758391841575,-300.0,0.00021049,20]
[386558322,1758391841584,-300.0,0.00021049,20]
[386558323,1758391841594,-300.0,0.00021049,20]
[386558324,1758391841604,-300.0,0.00021049,20]
[386558325,1758391841614,-412.25,0.00021054,2]
[386558326,1758391841623,-265.0,0.00021077,2]
[386558327,1758391841633,-168.0,0.00021078,2]
[386558328,1758391841645,-669.0,0.00021092,2]
[386558329,1758391841656,-368.0,0.00021093,2]
[386558330,1758391841665,-600.0,0.00021129,20]
[386558331,1758391841675,-480.0,0.00021155,2]
[386558332,1758391841684,-536.83,0.00021155,2]
[386558333,1758391841694,-480.0,0.00021155,2]
[386558334,1758391841703,-480.0,0.00021155,2]
[386558335,1758391841713,-480.0,0.00021155,2]
[386558336,1758391841722,-480.0,0.00021155,2]
[386558337,1758391841732,-480.0,0.00021155,2]
[386558338,1758391841741,-516.06859668,0.00021155,2]
[386558339,1758391841758,-384.00283,0.00020891,2]
[386558340,1758391841767,-393.90140332,0.00021155,2]
[386558341,1758391841776,-525.63,0.00021155,2]
[386558342,1758391841785,-327.18801918,0.00021155,2]
[386558343,1758391841796,-152.81198082,0.00021155,2]
[386558344,1758391841805,-480.0,0.00021155,2]
[386558345,1758391841814,-243.52645211,0.00021155,2]
[386558346,1758391841823,-397.56,0.00021155,2]
[386558347,1758391841832,-538.46,0.00021155,2]
[386558348,1758391841841,-1382.61,0.00021155,2]
[386558349,1758391841850,-480.0,0.00021155,2]
[386558350,1758391841860,-480.0,0.00021155,2]
[386558351,1758391841869,-480.0,0.00021155,2]
[386558352,1758391841878,-480.0,0.00021155,2]
[386558353,1758391841887,-480.0,0.00021155,2]
[386558354,1758391841897,-480.0,0.00021155,2]
[386558355,1758391841906,-480.0,0.00021155,2]
[386558356,1758391841915,-1357.90270083,0.00021155,2]
[386558357,1758391841926,-242.97729917,0.00021155,2]
[386558358,1758391841935,-480.0,0.00021155,2]
[386558359,1758391841944,-480.0,0.00021157,2]
[386558360,1758391841954,-259.17310064,0.00021157,2]
[386558361,1758391841964,-480.0,0.00021157,2]
[386558362,1758391841973,-480.0,0.00021157,2]
[386558363,1758391841982,-511.23,0.00021157,2]
[386558364,1758391841991,-1347.02,0.00021157,2]
[386558365,1758391842001,-1455.23,0.00021157,2]
[386558366,1758391842010,-480.0,0.00021157,2]
[386558367,1758391842019,-389.49303831,0.00021158,2]
[386558368,1758391842030,-90.50696169,0.00021158,2]
[386558369,1758391842039,-151.0,0.00021158,2]
[386558370,1758391842048,-152.986606,0.00021158,2]
[386558371,1758391842057,-242.742213,0.00021158,2]
[386558372,1758391842066,-240.738133,0.00021158,2]
[386558373,1758391842075,-152.986606,0.00021158,2]
[386558374,1758391842084,-152.986606,0.00021158,2]
[386558375,1758391842094,-152.98661,0.00021158,2]
[386558376,1758391842103,-249.872572,0.00021158,2]
[386558377,1758391842113,-151.0,0.00021158,2]
[386558378,1758391842121,-151.0,0.00021158,2]
[386558379,1758391842130,-151.0,0.00021158,2]
[386558380,1758391842149,-151.0,0.00021158,2]
[386558381,1758391842158,-1480.89,0.00021158,2]
[386558382,1758391842167,-480.0,0.00021158,2]
[386558383,1758391842176,-1070.17,0.00021158,2]
[386558384,1758391842186,-1357.77,0.00021158,2]
[386558385,1758391842195,-480.0,0.00021158,2]
[386558386,1758391842204,-1299.55,0.00021158,2]
[386558387,1758391842213,-480.0,0.00021158,2]
[386558388,1758391842222,-30.34323126,0.00021158,2]
[386558389,1758391842233,-486.58676874,0.00021158,2]
[386558390,1758391842242,-766.72,0.00021158,2]
[386558391,1758391842251,-2807.47,0.00021158,2]
[386558392,1758391842260,-480.0,0.00021158,2]
[386558393,1758391842269,-480.11,0.00021158,2]
[386558394,1758391842279,-327.160766,0.00021159,2]
[386558395,1758391842289,-327.160766,0.00021159,2]
[386558396,1758391842299,-327.160766,0.00021159,2]
[386558397,1758391842307,-327.160756,0.00021159,2]
[386558398,1758391842317,-151.0,0.00021159,2]
[386558399,1758391842327,-151.0,0.00021159,2]
[386558400,1758391842336,-218.792117,0.00021159,2]
[386558401,1758391842347,-218.792117,0.00021159,2]
[386558402,1758391842356,-218.792117,0.00021159,2]
[386558403,1758391842366,-218.792114,0.00021159,2]
[386558404,1758391842375,-2894.36,0.00021159,2]
[386558405,1758391842384,-1629.49,0.00021159,2]
[386558406,1758391842393,-480.0,0.00021159,2]
[386558408,1758391842403,-2134.98,0.00021159,2]
[386558409,1758391842412,-151.0,0.00021161,2]
[386558410,1758391842422,-151.0,0.00021161,2]
[386558411,1758391842431,-152.048419,0.00021161,2]
[386558412,1758391842442,-171.045854,0.00021161,2]
[386558413,1758391842452,-151.0,0.00021161,2]
[386558414,1758391842461,-156.245975,0.00021161,2]
[386558415,1758391842471,-480.0,0.00021164,2]
[386558416,1758391842480,-603.64520285,0.00021165,2]
[386558417,1758391842490,-151.945491,0.00021165,2]
[386558418,1758391842501,-480.0,0.00021165,2]
[386558419,1758391842511,-151.0,0.00021165,2]
[386558420,1758391842519,-151.0,0.00021165,2]
[386558421,1758391842529,-201.943835,0.00021165,2]
[386558422,1758391842538,-151.0,0.00021165,2]
[386558423,1758391842548,-151.0,0.00021165,2]
[386558425,1758391842557,-1051.11,0.00021165,2]
[386558426,1758391842567,-480.0,0.00021165,2]
[386558427,1758391842577,-151.0,0.00021165,2]
[386558428,1758391842587,-460.63,0.00021165,2]
[386558429,1758391842597,-569.52,0.00021165,2]
[386558430,1758391842607,-480.0,0.00021165,2]
[386558431,1758391842617,-798.82,0.00021165,2]
[386558432,1758391842626,-480.0,0.00021165,2]
[386558433,1758391842640,-480.0,0.00021165,2]
[386558434,1758391842650,-480.0,0.00021165,2]
[386558435,1758391842741,-634.7,0.00021165,2]
[386558436,1758391842750,-248.86,0.00021165,2]
[386558437,1758391842760,-1057.16,0.00021165,2]
[386558438,1758391842769,-442.92,0.00021165,2]
[386558439,1758391842779,-500.0,0.00021165,2]
[386558440,1758391842788,-480.0,0.00021165,2]
[386558441,1758391842797,-261.79081797,0.00021165,2]
[386558442,1758391842806,-480.0,0.00021165,2]
[386558443,1758391842816,-480.0,0.00021165,2]
[386558444,1758391842825,-3091.34684028,0.00021165,2]
[386558445,1758391842837,-2701.68315972,0.00021165,2]
[386558446,1758391842846,-481.04,0.00021166,2]
[386558447,1758391842855,-480.0,0.00021166,2]
[386558448,1758391842864,-1113.99,0.00021166,2]
[386558450,1758391842873,-480.0,0.00021166,2]
[386558451,1758391842882,-2064.05,0.00021166,2]
[386558452,1758391842892,-151.0,0.00021167,2]
[386558453,1758391842901,-151.0,0.00021167,2]
[386558454,1758391842912,-151.0,0.00021167,2]
[386558455,1758391842921,-151.0,0.00021167,2]
[386558457,1758391842931,-12781.24,0.00021167,2]
[386558458,1758391842940,-618.29,0.00021167,2]
[386558459,1758391842949,-1185.5,0.00021167,2]
[386558460,1758391842959,-1500.0,0.00021167,14]
[386558461,1758391842968,-1389.732937,0.00021167,14]
[386558462,1758391842977,-480.0,0.00021167,2]
[386558464,1758391842986,-1149.49,0.00021168,2]
[386558465,1758391842996,-451.0,0.0002117,2]
[386558466,1758391843007,-265.0,0.00021247,2]
[386558467,1758391843019,-332.91160879,0.00021256,2]
[386558468,1758391843031,-265.0,0.00021302,2]
[386558469,1758391843040,-368.0,0.00021364,2]
[386558470,1758391843050,-1000.0,0.00021421,2]
[386558471,1758391843060,-1000.0,0.00021421,2]
[386558472,1758391843070,-405.88385521,0.00021421,2]
[386558473,1758391843079,-1000.0,0.00021421,2]
[386558475,1758391843088,-1000.0,0.00021421,2]
[386558476,1758391843097,-1000.0,0.00021421,2]
[386558477,1758391843107,-1000.0,0.00021421,2]
[386558478,1758391843116,-1000.0,0.00021421,2]
[386558479,1758391843125,-1000.0,0.00021421,2]
[386558480,1758391843148,-480.0,0.00021429,2]
[386558481,1758391843157,-536.83,0.00021429,2]
[386558482,1758391843167,-480.0,0.00021429,2]
[386558483,1758391843177,-480.0,0.00021429,2]
[386558484,1758391843187,-480.0,0.00021429,2]
[386558485,1758391843196,-480.0,0.00021429,2]
[386558486,1758391843206,-909.97,0.00021429,2]
[386558487,1758391843215,-525.63,0.00021429,2]
[386558488,1758391843224,-480.0,0.00021429,2]
[386558489,1758391843233,-480.0,0.00021429,2]
[386558490,1758391843242,-538.46,0.00021429,2]
[386558491,1758391843252,-1382.61,0.00021429,2]
[386558492,1758391843261,-480.0,0.00021429,2]
[386558493,1758391843271,-298.04725886,0.00021429,2]
[386558499,1758391843481,-384.00283,0.00020618,2]
[386558500,1758391843491,-119.82901814,0.00020793,2]
[386558501,1758391843502,-264.17381186,0.00020793,2]
[386558502,1758391843511,-139.31782208,0.00020884,2]